[Event "AUT Bundesliga 2021-22"]
[Site "Graz"]
[Date "2022.03.25"]
[Round "6"]
[White "Mira, Helene"]
[Black "Kreisl, Robert"]
[Result "0-1"]
[ECO "A43"]
[WhiteElo "2090"]
[BlackElo "2397"]
[Annotator "NA"]
[PlyCount "60"]
[EventDate "2021.01.17"]
[EventType "team-tourn"]
[EventCountry "AUT"]
[SourceTitle "playchess.com"]
[Source "ChessBase"]
[SourceQuality "1"]
[TimeControl "40/5400+30:1800+30"]

1. d4 {[%emt 0:00:12]} c5 {[%emt 0:00:20]} 2. d5 {[%emt 0:00:30]} g6 {[%emt 0:00:14]} 3. c4 {[%emt 0:01:49]} Bg7 {[%emt 0:00:34]} 4. Qc2 {[%emt 0:00:13]} Nf6 {[%emt 0:03:26]} 5. Nc3 {[%emt 0:00:07]} e6 {[%emt 0:07:06]} 6. e4 {[%emt 0:04:25]} exd5 {[%emt 0:03:43]} 7. exd5 {[%emt 0:00:18]} O-O {[%emt 0:00:51]} 8. Nf3 {[%emt 0:00:14]} d6 {[%emt 0:02:36]} 9. Be2 {[%emt 0:00:10]} Bf5 {[%emt 0:01:17]} 10. Qb3 {[%emt 0:00:50]} Na6 {[%emt 0:01:49]} 11. a3 {[%emt 0:01:06]} Rb8 {[%emt 0:03:48]} 12. O-O {[%emt 0:01:04]} Nc7 {[%emt 0:03:02]} 13. h3 {[%emt 0:02:41]} Re8 {[%emt 0:05:08]} 14. Re1 {[%emt 0:10:21]} Ne4 {[%emt 0:05:01]} 15. Nxe4 {[%emt 0:02:27]} Bxe4 {[%emt 0:00:19]} 16. Bg5 {[%emt 0:00:22]} f6 {[%emt 0:11:31]} 17. Be3 {[%emt 0:03:18]} Bxf3 {[%emt 0:01:06]} 18. Bxf3 {[%emt 0:02:31]} b5 {[%emt 0:07:38]} 19. Rab1 {[%emt 0:03:16]} f5 {[%emt 0:01:04]} 20. cxb5 {[%emt 0:02:01]} Nxb5 {[%emt 0:01:39]} 21. Qa4 {[%emt 0:00:29]} Bf6 {[%emt 0:23:32]} 22. Be2 {[%emt 0:01:47]} Nd4 {[%emt 0:00:19]} 23. Bxd4 {[%emt 0:00:25]} Bxd4 {[%emt 0:00:05]} 24. Bb5 {[%emt 0:00:23]} Rxe1+ {[%emt 0:02:25]} 25. Rxe1 {[%emt 0:00:12]} Qb6 {[%emt 0:01:39]} 26. Bf1 {[%emt 0:00:33]} Qxb2 {[%emt 0:02:19]} 27. Re2 {[%emt 0:00:07]} Qb7 {[%emt 0:01:16]} 28. Re8+ {[%emt 0:00:17]} Rxe8 {[%emt 0:00:52]} 29. Qxe8+ {[%emt 0:00:09]} Kg7 {[%emt 0:00:03]} 30. Qc6 {[%emt 0:00:14]} Qb2 {[%emt 0:02:19]} 0-1

[Event "AUT Bundesliga 2021-22"]
[Site "Graz"]
[Date "2022.03.25"]
[Round "6"]
[White "Kosc, Renata"]
[Black "Neyman, Igor"]
[Result "0-1"]
[ECO "B28"]
[WhiteElo "1974"]
[BlackElo "2325"]
[Annotator "NA"]
[PlyCount "82"]
[EventDate "2021.01.17"]
[EventType "team-tourn"]
[EventCountry "AUT"]
[SourceTitle "playchess.com"]
[Source "ChessBase"]
[SourceQuality "1"]
[TimeControl "40/5400+30:1800+30"]

1. e4 {[%emt 0:00:03]} c5 {[%emt 0:00:38]} 2. Nf3 {[%emt 0:00:10]} a6 {[%emt 0:00:41]} 3. c4 {[%emt 0:04:05]} e6 {[%emt 0:07:17]} 4. d4 {[%emt 0:00:11]} cxd4 {[%emt 0:00:25]} 5. Nxd4 {[%emt 0:00:04]} b6 {[%emt 0:01:42]} 6. Nc3 {[%emt 0:01:08]} Bb7 {[%emt 0:00:45]} 7. Nc2 {[%emt 0:10:55]} Qc7 {[%emt 0:03:36]} 8. Be3 {[%emt 0:06:55]} d6 {[%emt 0:03:05]} 9. Be2 {[%emt 0:12:14]} Nf6 {[%emt 0:02:36]} 10. f3 {[%emt 0:02:08]} Nbd7 {[%emt 0:01:12]} 11. O-O {[%emt 0:23:59]} Be7 {[%emt 0:02:20]} 12. Kh1 {[%emt 0:00:55]} O-O {[%emt 0:02:05]} 13. Rc1 {[%emt 0:02:19]} Rac8 {[%emt 0:01:43]} 14. Nd4 {[%emt 0:02:43]} Qb8 {[%emt 0:02:13]} 15. b3 {[%emt 0:03:05]} Rfe8 {[%emt 0:03:15]} 16. g4 {[%emt 0:05:59]} Nf8 {[%emt 0:13:40]} 17. Bf2 {[%emt 0:02:10]} Ng6 {[%emt 0:02:37]} 18. Bg3 {[%emt 0:00:36]} Nd7 {[%emt 0:05:21]} 19. Qe1 {[%emt 0:01:37]} Qa8 {[%emt 0:02:42]} 20. h4 {[%emt 0:00:30]} Bf6 {[%emt 0:04:27]} 21. Qf2 {[%emt 0:00:57]} d5 {[%emt 0:06:27]} 22. exd5 {[%emt 0:05:57]} exd5 {[%emt 0:01:12]} 23. Nf5 {[%emt 0:03:03]} Be5 {[%emt 0:10:16]} 24. Nxd5 {[%emt 0:02:43]} Bxg3 {[%emt 0:05:32]} 25. Nxg3 {[%emt 0:00:06]} Bxd5 {[%emt 0:01:38]} 26. cxd5 {[%emt 0:00:06]} Rxc1 {[%emt 0:03:23]} 27. Rxc1 {[%emt 0:00:05]} Qxd5 {[%emt 0:02:33]} 28. Rd1 {[%emt 0:02:37]} Qc6 {[%emt 0:01:39]} 29. Nf5 {[%emt 0:00:36]} Nf6 {[%emt 0:03:33]} 30. Kg1 {[%emt 0:01:50]} Nf4 {[%emt 0:01:46]} 31. Bf1 {[%emt 0:01:17]} h6 {[%emt 0:00:52]} 32. Nd4 {[%emt 0:03:27]} Qc5 {[%emt 0:01:35]} 33. Kh2 {[%emt 0:00:27]} Rd8 {[%emt 0:01:56]} 34. Qe3 {[%emt 0:00:52]} Qd6 {[%emt 0:01:03]} 35. Kh1 {[%emt 0:01:32]} N4d5 {[%emt 0:01:19]} 36. Qd2 {[%emt 0:00:30]} Qg3 {[%emt 0:00:34]} 37. Qh2 {[%emt 0:00:12]} Qxh2+ {[%emt 0:00:19]} 38. Kxh2 {[%emt 0:00:04]} Ne3 {[%emt 0:00:16]} 39. Rd3 {[%emt 0:01:22]} Nxf1+ {[%emt 0:00:27]} 40. Kg2 {[%emt 0:00:00]} Ne3+ {[%emt 0:00:00]} 41. Kf2 {[%emt 0:00:34]} Nc2 {[%emt 0:00:40]} 0-1

[Event "AUT Bundesliga 2021-22"]
[Site "Graz"]
[Date "2022.03.26"]
[Round "8.5"]
[White "Fecker, Noah"]
[Black "Mazi, Leon"]
[Result "1/2-1/2"]
[ECO "B51"]
[WhiteElo "2328"]
[BlackElo "2347"]
[Annotator "ChessBase"]
[PlyCount "84"]
[EventDate "2021.01.17"]
[EventType "team-tourn"]
[EventCountry "AUT"]
[SourceTitle "playchess.com"]
[Source "ChessBase"]
[SourceQuality "1"]
[TimeControl "40/5400+30:1800+30"]

1. e4 {[%emt 0:00:04]} c5 {[%emt 0:00:18]} 2. Nf3 {[%emt 0:00:05]} d6 {[%emt 0:00:15]} 3. Bb5+ {[%emt 0:00:28]} Nd7 {[%emt 0:02:01]} 4. a4 {[%emt 0:00:09]} a6 {[%emt 0:05:58]} 5. Be2 {[%emt 0:00:14]} Ngf6 {[%emt 0:01:28]} 6. Nc3 {[%emt 0:00:09]} b6 {[%emt 0:01:00]} 7. d4 {[%emt 0:01:34]} cxd4 {[%emt 0:00:54]} 8. Qxd4 {[%emt 0:00:05]} e6 {[%emt 0:05:01]} 9. O-O {[%emt 0:00:51]} Qc7 {[%emt 0:01:17]} 10. Rd1 {[%emt 0:06:27]} Bb7 {[%emt 0:03:51]} 11. Be3 {[%emt 0:03:49]} Be7 {[%emt 0:02:41]} 12. Nd2 {[%emt 0:04:20]} O-O {[%emt 0:08:12]} 13. Nc4 {[%emt 0:03:09]} d5 {[%emt 0:12:48]} 14. exd5 {[%emt 0:25:43]} Nxd5 {[%emt 0:01:05]} 15. Nxd5 {[%emt 0:05:16]} Bxd5 {[%emt 0:00:47]} 16. Nxb6 {[%emt 0:01:21]} Nxb6 {[%emt 0:01:15]} 17. Qxb6 {[%emt 0:01:14]} Qxc2 {[%emt 0:00:57]} 18. Bd3 {[%emt 0:02:55]} Qb3 {[%emt 0:03:38]} 19. a5 {[%emt 0:07:16]} Rfb8 {[%emt 0:03:26]} 20. Qxb3 {[%emt 0:01:24]} Rxb3 {[%emt 0:00:35]} 21. Bd4 {[%emt 0:01:54]} Bf6 {[%emt 0:04:27]} 22. Bxf6 {[%emt 0:01:31]} gxf6 {[%emt 0:00:02]} 23. Rd2 {[%emt 0:01:08]} Rb4 {[%emt 0:03:48]} 24. f3 {[%emt 0:15:14]} Bc6 {[%emt 0:06:37]} 25. Kf2 {[%emt 0:04:21]} f5 {[%emt 0:03:22]} 26. Ke3 {[%emt 0:01:38]} f4+ {[%emt 0:06:21]} 27. Ke2 {[%emt 0:00:51]} Bb5 {[%emt 0:01:46]} 28. Bxb5 {[%emt 0:01:10]} Rxb5 {[%emt 0:00:10]} 29. Ra4 {[%emt 0:00:48]} Rab8 {[%emt 0:03:34]} 30. Rxf4 {[%emt 0:00:52]} Rxb2 {[%emt 0:00:20]} 31. Rg4+ {[%emt 0:02:33]} Kf8 {[%emt 0:00:17]} 32. Rg5 {[%emt 0:01:50]} f5 {[%emt 0:02:20]} 33. g4 {[%emt 0:00:54]} Rxd2+ {[%emt 0:00:27]} 34. Kxd2 {[%emt 0:00:01]} Rb5 {[%emt 0:00:12]} 35. gxf5 {[%emt 0:00:42]} exf5 {[%emt 0:00:21]} 36. h4 {[%emt 0:00:32]} Rxa5 {[%emt 0:05:26]} 37. h5 {[%emt 0:00:06]} Rb5 {[%emt 0:03:44]} 38. h6 {[%emt 0:00:44]} Rb7 {[%emt 0:03:52]} 39. Rxf5+ {[%emt 0:00:29]} Rf7 {[%emt 0:00:06]} 40. Rc5 {[%emt 0:00:00]} Rf6 {[%emt 0:00:00]} 41. Rc7 {[%emt 0:02:39]} Rxh6 {[%emt 0:02:24]} 42. Ra7 {[%emt 0:01:07]} Re6 {[%emt 0:10:03]} 1/2-1/2

[Event "AUT Bundesliga 2021-22"]
[Site "Graz"]
[Date "2022.03.26"]
[Round "8.6"]
[White "Dietmayer-Kraeutler, Marco"]
[Black "Novkovic, Milan"]
[Result "1/2-1/2"]
[ECO "E19"]
[WhiteElo "2312"]
[BlackElo "2360"]
[Annotator "ChessBase"]
[PlyCount "60"]
[EventDate "2021.01.17"]
[EventType "team-tourn"]
[EventCountry "AUT"]
[SourceTitle "playchess.com"]
[Source "ChessBase"]
[SourceQuality "1"]
[TimeControl "40/5400+30:1800+30"]

1. d4 {[%emt 0:00:03]} Nf6 {[%emt 0:00:33]} 2. c4 {[%emt 0:00:06]} e6 {[%emt 0:00:39]} 3. Nf3 {[%emt 0:00:19]} b6 {[%emt 0:03:29]} 4. g3 {[%emt 0:02:28]} Bb7 {[%emt 0:04:20]} 5. Bg2 {[%emt 0:00:05]} Be7 {[%emt 0:00:11]} 6. O-O {[%emt 0:00:06]} O-O {[%emt 0:00:10]} 7. Nc3 {[%emt 0:00:04]} Ne4 {[%emt 0:00:08]} 8. Qc2 {[%emt 0:03:52]} Nxc3 {[%emt 0:02:43]} 9. Qxc3 {[%emt 0:01:20]} Bf6 {[%emt 0:08:36]} 10. h4 {[%emt 0:06:00]} c5 {[%emt 0:06:54]} 11. Qd3 {[%emt 0:04:00]} d5 {[%emt 0:10:49]} 12. dxc5 {[%emt 0:10:49]} dxc4 {[%emt 0:03:45]} 13. Qxc4 {[%emt 0:07:40]} Qc8 {[%emt 0:03:25]} 14. Ng5 {[%emt 0:12:04]} Bxg2 {[%emt 0:03:41]} 15. Kxg2 {[%emt 0:00:30]} Nd7 {[%emt 0:07:43]} 16. Ne4 {[%emt 0:07:52]} bxc5 {[%emt 0:04:47]} 17. Nxf6+ {[%emt 0:03:02]} Nxf6 {[%emt 0:00:11]} 18. b3 {[%emt 0:00:17]} Qb7+ {[%emt 0:14:44]} 19. Kg1 {[%emt 0:04:04]} Qd5 {[%emt 0:03:21]} 20. Ba3 {[%emt 0:04:31]} Qxc4 {[%emt 0:00:27]} 21. bxc4 {[%emt 0:00:03]} Rfc8 {[%emt 0:01:19]} 22. Rab1 {[%emt 0:03:19]} Rc7 {[%emt 0:00:10]} 23. Rb5 {[%emt 0:06:15]} Nd7 {[%emt 0:02:07]} 24. Rfb1 {[%emt 0:02:57]} Rac8 {[%emt 0:02:18]} 25. Rb7 {[%emt 0:00:50]} Kf8 {[%emt 0:01:14]} 26. Kf1 {[%emt 0:06:15]} Ke7 {[%emt 0:01:46]} 27. Ke1 {[%emt 0:01:16]} Kd6 {[%emt 0:07:10]} 28. Kd2 {[%emt 0:02:47]} Nb6 {[%emt 0:02:17]} 29. Rxc7 {[%emt 0:00:39]} Rxc7 {[%emt 0:00:25]} 30. Kd3 {[%emt 0:01:38]} g6 1/2-1/2

[Event "AUT Bundesliga 2021-22"]
[Site "Graz"]
[Date "2022.03.26"]
[Round "8.9"]
[White "Vitouch, Anatol"]
[Black "Tica, Sven"]
[Result "1/2-1/2"]
[ECO "A14"]
[WhiteElo "2245"]
[BlackElo "2423"]
[Annotator "ChessBase"]
[PlyCount "85"]
[EventDate "2021.01.17"]
[EventType "team-tourn"]
[EventCountry "AUT"]
[SourceTitle "playchess.com"]
[Source "ChessBase"]
[SourceQuality "1"]
[TimeControl "40/5400+30:1800+30"]

1. c4 {[%emt 0:00:02]} e6 {[%emt 0:00:06]} 2. g3 {[%emt 0:00:06]} d5 {[%emt 0:00:06]} 3. Bg2 {[%emt 0:00:19]} Nf6 {[%emt 0:00:08]} 4. Nf3 {[%emt 0:00:08]} Be7 {[%emt 0:00:05]} 5. O-O {[%emt 0:00:08]} O-O {[%emt 0:00:04]} 6. d4 {[%emt 0:00:22]} c6 {[%emt 0:02:07]} 7. Nbd2 {[%emt 0:00:29]} b6 {[%emt 0:00:26]} 8. Qc2 {[%emt 0:00:10]} Bb7 {[%emt 0:02:12]} 9. e4 {[%emt 0:00:17]} dxc4 {[%emt 0:02:13]} 10. Nxc4 {[%emt 0:00:56]} Nbd7 {[%emt 0:00:45]} 11. e5 {[%emt 0:08:50]} Nd5 {[%emt 0:00:13]} 12. Qe4 {[%emt 0:01:14]} b5 {[%emt 0:07:47]} 13. Ne3 {[%emt 0:06:34]} c5 {[%emt 0:02:12]} 14. Qg4 {[%emt 0:03:22]} Kh8 {[%emt 0:14:49]} 15. Qh5 {[%emt 0:37:23]} Qe8 {[%emt 0:15:20]} 16. Nxd5 {[%emt 0:22:18]} Bxd5 {[%emt 0:00:09]} 17. dxc5 {[%emt 0:00:06]} Nxc5 {[%emt 0:17:20]} 18. Bg5 {[%emt 0:00:12]} Rd8 {[%emt 0:06:05]} 19. Rfd1 {[%emt 0:01:32]} Be4 {[%emt 0:04:51]} 20. Bxe7 {[%emt 0:05:36]} Qxe7 {[%emt 0:00:07]} 21. Nd4 {[%emt 0:00:31]} Bxg2 {[%emt 0:04:37]} 22. Kxg2 {[%emt 0:00:05]} Rd5 {[%emt 0:00:21]} 23. Qf3 {[%emt 0:02:35]} Qd7 {[%emt 0:01:43]} 24. b4 {[%emt 0:02:06]} Rxd4 {[%emt 0:05:50]} 25. bxc5 {[%emt 0:00:08]} Rd8 {[%emt 0:00:07]} 26. c6 {[%emt 0:01:11]} Qc7 {[%emt 0:00:36]} 27. Rxd4 {[%emt 0:01:19]} Rxd4 {[%emt 0:00:07]} 28. Rc1 {[%emt 0:01:06]} h6 {[%emt 0:01:23]} 29. Rc5 {[%emt 0:03:12]} a6 {[%emt 0:02:01]} 30. Qc3 {[%emt 0:00:55]} Rd8 {[%emt 0:01:46]} 31. f4 {[%emt 0:00:36]} g6 {[%emt 0:03:14]} 32. Qc2 {[%emt 0:00:24]} Kg7 {[%emt 0:00:21]} 33. Kh3 {[%emt 0:00:58]} Rd4 {[%emt 0:02:49]} 34. Qc3 {[%emt 0:00:32]} Rd8 {[%emt 0:00:15]} 35. Qc2 {[%emt 0:00:07]} Rd4 {[%emt 0:00:06]} 36. Qc3 {[%emt 0:00:09]} Rd8 {[%emt 0:00:05]} 37. Qa3 {[%emt 0:01:28]} Ra8 {[%emt 0:01:33]} 38. Qb4 {[%emt 0:00:28]} Rb8 {[%emt 0:00:45]} 39. Rc3 {[%emt 0:00:42]} Rd8 {[%emt 0:00:26]} 40. a4 {[%emt 0:00:00]} bxa4 {[%emt 0:00:00]} 41. Qxa4 {[%emt 0:02:00]} a5 {[%emt 0:03:52]} 42. Rc5 {[%emt 0:01:32]} Ra8 {[%emt 0:00:28]} 43. Qb5 {[%emt 0:08:08]} 1/2-1/2

[Event "AUT Bundesliga 2021-22"]
[Site "Graz"]
[Date "2022.03.26"]
[Round "8.10"]
[White "Deglmann, Ludwig"]
[Black "Lovrinovic, Christian"]
[Result "1/2-1/2"]
[ECO "A15"]
[WhiteElo "2248"]
[BlackElo "2117"]
[Annotator "ChessBase"]
[PlyCount "83"]
[EventDate "2021.01.17"]
[EventType "team-tourn"]
[EventCountry "AUT"]
[SourceTitle "playchess.com"]
[Source "ChessBase"]
[SourceQuality "1"]
[TimeControl "40/5400+30:1800+30"]

1. c4 {[%emt 0:00:30]} Nf6 {[%emt 0:00:07]} 2. g3 {[%emt 0:00:51]} g6 {[%emt 0:00:15]} 3. Bg2 {[%emt 0:00:05]} Bg7 {[%emt 0:00:00]} 4. Nc3 {[%emt 0:00:09]} d6 {[%emt 0:00:06]} 5. d3 {[%emt 0:00:37]} O-O {[%emt 0:00:12]} 6. Bg5 {[%emt 0:00:29]} h6 {[%emt 0:01:06]} 7. Bd2 {[%emt 0:03:45]} e5 {[%emt 0:04:45]} 8. e4 {[%emt 0:03:55]} c6 {[%emt 0:03:40]} 9. Nge2 {[%emt 0:00:12]} Be6 {[%emt 0:00:10]} 10. O-O {[%emt 0:04:43]} Na6 {[%emt 0:04:59]} 11. h3 {[%emt 0:17:36]} Qd7 {[%emt 0:09:46]} 12. Kh2 {[%emt 0:01:10]} d5 {[%emt 0:00:57]} 13. cxd5 {[%emt 0:01:04]} cxd5 {[%emt 0:00:32]} 14. d4 {[%emt 0:01:00]} Nxe4 {[%emt 0:02:09]} 15. Nxe4 {[%emt 0:02:01]} dxe4 {[%emt 0:00:19]} 16. dxe5 {[%emt 0:00:07]} Bc4 {[%emt 0:19:33]} 17. Rc1 {[%emt 0:09:59]} Bb5 {[%emt 0:02:30]} 18. Qe1 {[%emt 0:07:46]} Bxe5 {[%emt 0:07:56]} 19. Bxh6 {[%emt 0:00:49]} Rfe8 {[%emt 0:01:24]} 20. b3 {[%emt 0:06:21]} Rad8 {[%emt 0:24:00]} 21. Rh1 {[%emt 0:05:26]} Qe7 {[%emt 0:04:36]} 22. Nc3 {[%emt 0:04:09]} Bd3 {[%emt 0:00:32]} 23. Nxe4 {[%emt 0:06:27]} Bxe4 {[%emt 0:01:43]} 24. Qxe4 {[%emt 0:01:05]} Bxg3+ {[%emt 0:02:45]} 25. Kxg3 {[%emt 0:03:38]} Qxe4 {[%emt 0:00:10]} 26. Bxe4 {[%emt 0:00:08]} Rxe4 {[%emt 0:00:01]} 27. Be3 {[%emt 0:01:00]} b6 {[%emt 0:00:48]} 28. Rhd1 {[%emt 0:00:09]} Ree8 {[%emt 0:05:30]} 29. a3 {[%emt 0:03:03]} Nc5 {[%emt 0:00:28]} 30. Bxc5 {[%emt 0:08:29]} bxc5 {[%emt 0:00:01]} 31. Rxd8 {[%emt 0:00:17]} Rxd8 {[%emt 0:00:00]} 32. Rxc5 {[%emt 0:03:06]} Rd3+ {[%emt 0:00:07]} 33. f3 {[%emt 0:01:10]} Rxb3 {[%emt 0:00:01]} 34. Ra5 {[%emt 0:00:09]} Rb7 {[%emt 0:00:03]} 35. h4 {[%emt 0:01:40]} Kg7 {[%emt 0:00:26]} 36. h5 {[%emt 0:00:06]} gxh5 {[%emt 0:02:30]} 37. Rxh5 {[%emt 0:00:15]} Rb6 {[%emt 0:00:33]} 38. Ra5 {[%emt 0:01:01]} a6 {[%emt 0:00:04]} 39. Kf4 {[%emt 0:01:41]} Kf6 {[%emt 0:01:15]} 40. Ke4 {[%emt 0:00:00]} Rd6 {[%emt 0:00:00]} 41. Rh5 {[%emt 0:09:09]} Ke6 {[%emt 0:06:32]} 42. Ra5 1/2-1/2

[Event "AUT Bundesliga 2021-22"]
[Site "Graz"]
[Date "2022.03.26"]
[Round "8.11"]
[White "Prinzjakowitsch, Bernhard"]
[Black "de Francesco, Klaus"]
[Result "0-1"]
[ECO "C11"]
[WhiteElo "2091"]
[BlackElo "2177"]
[Annotator "NA"]
[PlyCount "48"]
[EventDate "2021.01.17"]
[EventType "team-tourn"]
[EventCountry "AUT"]
[SourceTitle "playchess.com"]
[Source "ChessBase"]
[SourceQuality "1"]
[TimeControl "40/5400+30:1800+30"]

1. e4 {[%emt 0:00:02]} e6 {[%emt 0:00:07]} 2. d4 {[%emt 0:00:06]} d5 {[%emt 0:00:07]} 3. Nc3 {[%emt 0:00:07]} Nf6 {[%emt 0:00:15]} 4. e5 {[%emt 0:00:09]} Nfd7 {[%emt 0:00:07]} 5. Nce2 {[%emt 0:00:46]} c5 {[%emt 0:00:22]} 6. c3 {[%emt 0:00:36]} Nc6 {[%emt 0:00:13]} 7. f4 {[%emt 0:00:22]} Qb6 {[%emt 0:00:46]} 8. Nf3 {[%emt 0:00:09]} f6 {[%emt 0:02:21]} 9. a3 {[%emt 0:01:25]} a5 {[%emt 0:01:52]} 10. Rb1 {[%emt 0:00:13]} cxd4 {[%emt 0:01:39]} 11. cxd4 {[%emt 0:00:09]} Be7 {[%emt 0:00:19]} 12. Nc3 {[%emt 0:01:08]} O-O {[%emt 0:00:47]} 13. Qd3 {[%emt 0:00:25]} fxe5 {[%emt 0:05:31]} 14. dxe5 {[%emt 0:00:30]} Nc5 {[%emt 0:01:59]} 15. Qc2 {[%emt 0:00:13]} Bd7 {[%emt 0:02:54]} 16. Be3 {[%emt 0:01:07]} d4 {[%emt 0:06:53]} 17. Nxd4 {[%emt 0:00:04]} Nxd4 {[%emt 0:00:11]} 18. Bxd4 {[%emt 0:00:04]} Rxf4 {[%emt 0:00:13]} 19. Be3 {[%emt 0:00:02]} Rf5 {[%emt 0:00:19]} 20. Bd4 {[%emt 0:01:43]} Qb3 {[%emt 0:04:16]} 21. Qd1 {[%emt 0:01:53]} Bc6 {[%emt 0:02:40]} 22. Qe2 {[%emt 0:05:17]} Rd8 {[%emt 0:05:46]} 23. Qe3 {[%emt 0:00:09]} Bh4+ {[%emt 0:02:31]} 24. g3 {[%emt 0:00:11]} Bg5 {[%emt 0:00:30]} 0-1

[Event "AUT Bundesliga 2021-22"]
[Site "Graz"]
[Date "2022.03.26"]
[Round "8.12"]
[White "Gerhold, Michael"]
[Black "Kosc, Renata"]
[Result "1-0"]
[ECO "A80"]
[WhiteElo "2167"]
[BlackElo "1974"]
[Annotator "ChessBase"]
[PlyCount "77"]
[EventDate "2021.01.17"]
[EventType "team-tourn"]
[EventCountry "AUT"]
[SourceTitle "playchess.com"]
[Source "ChessBase"]
[SourceQuality "1"]
[TimeControl "40/5400+30:1800+30"]

1. d4 {[%emt 0:00:09]} f5 {[%emt 0:00:06]} 2. Bg5 {[%emt 0:00:07]} g6 {[%emt 0:02:39]} 3. e3 {[%emt 0:01:07]} Bg7 {[%emt 0:00:30]} 4. Nc3 {[%emt 0:00:13]} Nf6 {[%emt 0:06:24]} 5. h4 {[%emt 0:02:41]} h6 {[%emt 0:27:24]} 6. Bxf6 {[%emt 0:03:12]} Bxf6 {[%emt 0:08:42]} 7. g4 {[%emt 0:00:33]} d5 {[%emt 0:00:49]} 8. Bd3 {[%emt 0:00:55]} e6 {[%emt 0:01:50]} 9. Nge2 {[%emt 0:21:29]} Qe7 {[%emt 0:16:49]} 10. h5 {[%emt 0:13:35]} g5 {[%emt 0:10:00]} 11. gxf5 {[%emt 0:00:25]} exf5 {[%emt 0:02:01]} 12. Nxd5 {[%emt 0:00:17]} Qd6 {[%emt 0:00:56]} 13. Nxf6+ {[%emt 0:05:27]} Qxf6 {[%emt 0:00:05]} 14. Qd2 {[%emt 0:06:55]} Nc6 {[%emt 0:01:02]} 15. O-O-O {[%emt 0:01:17]} Bd7 {[%emt 0:00:27]} 16. c3 {[%emt 0:05:40]} O-O-O {[%emt 0:00:10]} 17. Kb1 {[%emt 0:01:36]} Rhf8 {[%emt 0:00:16]} 18. Rde1 {[%emt 0:02:32]} Ne7 {[%emt 0:02:07]} 19. f3 {[%emt 0:01:58]} Kb8 {[%emt 0:03:22]} 20. Ng3 {[%emt 0:04:14]} Qd6 {[%emt 0:02:54]} 21. Rhg1 {[%emt 0:02:28]} c5 {[%emt 0:04:42]} 22. Qc2 {[%emt 0:03:28]} Rc8 {[%emt 0:01:30]} 23. Qf2 {[%emt 0:06:59]} b5 {[%emt 0:02:07]} 24. e4 {[%emt 0:06:01]} c4 {[%emt 0:00:21]} 25. e5 {[%emt 0:02:06]} Qb6 {[%emt 0:00:46]} 26. Bc2 {[%emt 0:01:02]} Nd5 {[%emt 0:00:07]} 27. Qd2 {[%emt 0:04:08]} a5 {[%emt 0:00:17]} 28. Ka1 {[%emt 0:00:33]} b4 {[%emt 0:00:14]} 29. Ne2 {[%emt 0:01:39]} Ka7 {[%emt 0:01:17]} 30. Bb1 {[%emt 0:01:15]} Rb8 {[%emt 0:00:17]} 31. Rc1 {[%emt 0:00:34]} Rfc8 {[%emt 0:01:01]} 32. f4 {[%emt 0:00:43]} g4 {[%emt 0:00:12]} 33. Ng3 {[%emt 0:00:15]} bxc3 {[%emt 0:03:34]} 34. bxc3 {[%emt 0:00:06]} a4 {[%emt 0:00:12]} 35. Bxf5 {[%emt 0:00:39]} Bxf5 {[%emt 0:00:15]} 36. Nxf5 {[%emt 0:00:04]} a3 {[%emt 0:00:32]} 37. Rb1 {[%emt 0:00:14]} Qa5 {[%emt 0:00:14]} 38. Nd6 {[%emt 0:00:57]} Nxc3 {[%emt 0:02:34]} 39. Nxc8+ {[%emt 0:00:40]} 1-0

[Event "AUT Bundesliga 2021-22"]
[Site "Graz"]
[Date "2022.03.26"]
[Round "8.15"]
[White "Handler, Lukas"]
[Black "Walter, Stefan"]
[Result "1/2-1/2"]
[ECO "E06"]
[WhiteElo "2436"]
[BlackElo "2380"]
[Annotator "ChessBase"]
[PlyCount "67"]
[EventDate "2021.01.17"]
[EventType "team-tourn"]
[EventCountry "AUT"]
[SourceTitle "playchess.com"]
[Source "ChessBase"]
[SourceQuality "1"]
[TimeControl "40/5400+30:1800+30"]

1. d4 {[%emt 0:00:03]} d5 {[%emt 0:00:13]} 2. c4 {[%emt 0:00:04]} e6 {[%emt 0:00:12]} 3. Nf3 {[%emt 0:00:07]} Nf6 {[%emt 0:00:25]} 4. g3 {[%emt 0:01:20]} Be7 {[%emt 0:00:30]} 5. Bg2 {[%emt 0:00:10]} O-O {[%emt 0:00:13]} 6. O-O {[%emt 0:00:09]} dxc4 {[%emt 0:00:23]} 7. Ne5 {[%emt 0:01:03]} c5 {[%emt 0:00:38]} 8. dxc5 {[%emt 0:01:59]} Qc7 {[%emt 0:00:41]} 9. Nxc4 {[%emt 0:01:15]} Rd8 {[%emt 0:00:38]} 10. Qc2 {[%emt 0:07:46]} Nc6 {[%emt 0:01:21]} 11. Nc3 {[%emt 0:10:39]} Nd4 {[%emt 0:07:04]} 12. Qb1 {[%emt 0:02:13]} Nd5 {[%emt 0:10:13]} 13. e3 {[%emt 0:19:39]} Nxc3 {[%emt 0:16:32]} 14. bxc3 {[%emt 0:00:09]} Ne2+ {[%emt 0:00:07]} 15. Kh1 {[%emt 0:00:12]} Nxc1 {[%emt 0:01:33]} 16. Qxc1 {[%emt 0:02:29]} Bxc5 {[%emt 0:09:04]} 17. Rb1 {[%emt 0:04:52]} Rb8 {[%emt 0:00:23]} 18. Rd1 {[%emt 0:03:06]} Bd7 {[%emt 0:02:42]} 19. Nd2 {[%emt 0:01:14]} b6 {[%emt 0:04:52]} 20. Nb3 {[%emt 0:01:16]} Be7 {[%emt 0:01:40]} 21. Qb2 {[%emt 0:02:07]} Rbc8 {[%emt 0:01:23]} 22. Rbc1 {[%emt 0:00:52]} Bf6 {[%emt 0:02:00]} 23. Qa3 {[%emt 0:07:33]} h5 {[%emt 0:10:08]} 24. h4 {[%emt 0:04:22]} Bc6 {[%emt 0:04:58]} 25. Rxd8+ {[%emt 0:04:03]} Rxd8 {[%emt 0:00:12]} 26. Qa6 {[%emt 0:06:06]} Rd7 {[%emt 0:08:28]} 27. Qe2 {[%emt 0:05:28]} g6 {[%emt 0:01:11]} 28. c4 {[%emt 0:04:10]} Ba4 {[%emt 0:03:34]} 29. Bf3 {[%emt 0:02:33]} Kg7 {[%emt 0:00:29]} 30. Kg2 {[%emt 0:00:13]} Bxb3 {[%emt 0:10:37]} 31. axb3 {[%emt 0:00:20]} Qd6 {[%emt 0:00:50]} 32. Rd1 {[%emt 0:01:24]} Qxd1 {[%emt 0:00:14]} 33. Qxd1 {[%emt 0:00:06]} Rxd1 {[%emt 0:00:06]} 34. Bxd1 {[%emt 0:00:04]} 1/2-1/2